lending/lending_fUSD_20250425
["ID","MTS","AMOUNT","RATE_DAILY","PERIOD"]
[358920704,1745545479644,-10337.63,0.00050958,30]
[358920705,1745545479686,-3067.16,0.00050958,30]
[358920706,1745545479727,-1318.12,0.00050958,30]
[358920707,1745545479766,-507.43,0.00050958,30]
[358920708,1745545479806,-570.23,0.00050958,30]
[358920709,1745545479845,-627.41,0.00050958,30]
[358920710,1745545479884,-500.0,0.00050958,30]
[358920711,1745545479923,-500.0,0.00050958,30]
[358920712,1745545479962,-679.54,0.00050958,30]
[358920713,1745545480003,-1252.46,0.00050958,30]
[358920714,1745545480044,-500.0,0.00050958,30]
[358920715,1745545480084,-575.58,0.00050958,30]
[358920716,1745545480124,-2182.67,0.00050958,30]
[358920717,1745545480162,-521.29,0.00050958,30]
[358920718,1745545480212,-1867.96,0.00050958,30]
[358920719,1745545480254,-1074.64,0.00050958,30]
[358920720,1745545480293,-3545.51,0.00050958,30]
[358920721,1745545480333,-728.08,0.00050958,30]
[358920722,1745545480371,-672.38,0.00050958,30]
[358920723,1745545480410,-500.0,0.00050958,30]
[358920724,1745545480452,-3286.78,0.00050958,30]
[358920725,1745545480493,-500.0,0.00050958,30]
[358920726,1745545480533,-1180.4,0.00050958,30]
[358920727,1745545480574,-500.0,0.00050958,30]
[358920728,1745545480614,-500.0,0.00050958,30]
[358920729,1745545480655,-502.18,0.00050958,30]
[358920730,1745545480695,-3075.34,0.00050958,30]
[358920731,1745545480734,-1837.7,0.00050958,30]
[358920732,1745545480775,-3115.11,0.00050958,30]
[358920733,1745545480818,-500.0,0.00050958,30]
[358920734,1745545480859,-1656.27,0.00050958,30]
[358920735,1745545480898,-1741.99,0.00050958,30]
[358920736,1745545480938,-919.24,0.00050958,30]
[358920737,1745545480985,-2447.99,0.00050958,30]
[358920738,1745545481030,-500.0,0.00050958,30]
[358920739,1745545481071,-8924.7,0.00050958,30]
[358920740,1745545481113,-500.0,0.00050958,30]
[358920741,1745545481157,-1868.99,0.00050958,30]
[358920742,1745545481200,-770.76,0.00050958,30]
[358920743,1745545481242,-818.8,0.00050958,30]
[358920744,1745545481284,-500.0,0.00050958,30]
[358920745,1745545481323,-1584.41,0.00050958,30]
[358920746,1745545481364,-1480.64,0.00050958,30]
[358920747,1745545481405,-572.56,0.00050958,30]
[358920748,1745545481446,-500.0,0.00050958,30]
[358920749,1745545481485,-715.9,0.00050958,30]
[358920750,1745545481527,-655.98,0.00050958,30]
[358920751,1745545481569,-500.0,0.00050958,30]
[358920752,1745545481611,-786.19,0.00050958,30]
[358920753,1745545481651,-500.0,0.00050958,30]
[358920754,1745545481692,-733.82,0.00050958,30]
[358920755,1745545481740,-760.58,0.00050958,30]
[358920756,1745545481783,-1510.41,0.00050958,30]
[358920757,1745545481825,-825.68,0.00050958,30]
[358920758,1745545481866,-500.0,0.00050958,30]
[358920759,1745545481905,-1091.92,0.00050958,30]
[358920760,1745545481944,-500.0,0.00050958,30]
[358920761,1745545481985,-500.0,0.00050958,30]
[358920762,1745545482026,-3345.59,0.00050958,30]
[358920763,1745545482065,-500.0,0.00050958,30]
[358920764,1745545482108,-964.01,0.00050958,30]
[358920765,1745545482149,-299.21656615,0.00050958,30]
[358920766,1745545482190,-579.02,0.00050958,30]
[358920767,1745545482232,-500.0,0.00050958,30]
[358920768,1745545482270,-3181.51,0.00050958,30]
[358920769,1745545482309,-1127.53,0.00050958,30]
[358920770,1745545482348,-1405.73,0.00050958,30]
[358920771,1745545482388,-918.96,0.00050958,30]
[358920772,1745545482430,-970.8,0.00050958,30]
[358920773,1745545482475,-1253.7,0.00050958,30]
[358920774,1745545482518,-500.0,0.00050958,30]
[358920775,1745545482567,-1119.69,0.00050958,30]
[358920776,1745545482613,-500.0,0.00050958,30]
[358920777,1745545482657,-616.95,0.00050958,30]
[358920778,1745545482701,-2204.65,0.00050958,30]
[358920779,1745545482743,-1770.63,0.00050958,30]
[358920780,1745545482785,-500.0,0.00050958,30]
[358920781,1745545482828,-735.34,0.00050958,30]
[358920782,1745545482871,-845.57,0.00050958,30]
[358920783,1745545482913,-506.82,0.00050958,30]
[358920784,1745545482957,-771.61,0.00050958,30]
[358920785,1745545482996,-797.78,0.00050958,30]
[358920786,1745545483037,-500.0,0.00050958,30]
[358920787,1745545483074,-501.95131201,0.00050958,30]
[358920788,1745545483113,-1617.03,0.00050958,30]
[358920789,1745545483152,-661.15,0.00050958,30]
[358920790,1745545483193,-500.0,0.00050958,30]
[358920791,1745545483233,-1431.22,0.00050958,30]
[358920792,1745545483273,-899.41,0.00050958,30]
[358920793,1745545483314,-1145.2,0.00050958,30]
[358920794,1745545483354,-823.48,0.00050958,30]
[358920795,1745545483395,-500.0,0.00050958,30]
[358920796,1745545483436,-680.92,0.00050958,30]
[358920797,1745545483743,-511.66,0.00050958,30]
[358920798,1745545483789,-2134.81,0.00050958,30]
[358920799,1745545483831,-503.98,0.00050958,30]
[358920800,1745545483874,-949.81,0.00050958,30]
[358920801,1745545483917,-520.85,0.00050958,30]
[358920802,1745545483965,-1317.65,0.00050958,30]
[358920803,1745545484007,-252.14490093,0.00050958,30]
[358920804,1745545484049,-1006.04,0.00050958,30]
[358920805,1745545484092,-500.0,0.00050958,30]
[358920806,1745545484132,-34592.57,0.00050958,30]
[358920807,1745545484175,-1128.15,0.00050958,30]
[358920808,1745545484216,-742.75,0.00050958,30]
[358920809,1745545484257,-500.0,0.00050958,30]
[358920810,1745545484296,-500.0,0.00050958,30]
[358920811,1745545484337,-500.0,0.00050958,30]
[358920812,1745545484377,-1846.29,0.00050958,30]
[358920813,1745545484426,-581.2,0.00050958,30]
[358920814,1745545484468,-748.35,0.00050958,30]
[358920815,1745545484510,-1159.23,0.00050958,30]
[358920816,1745545484550,-500.0,0.00050958,30]
[358920817,1745545484591,-1415.98,0.00050958,30]
[358920818,1745545484629,-17345.41,0.00050958,30]
[358920819,1745545484671,-945.17,0.00050958,30]
[358920820,1745545484712,-500.0,0.00050958,30]
[358920821,1745545484752,-628.22,0.00050958,30]
[358920822,1745545484792,-601.01,0.00050958,30]
[358920823,1745545484832,-521.14,0.00050958,30]
[358920824,1745545484873,-500.0,0.00050958,30]
[358920825,1745545484914,-909.31,0.00050958,30]
[358920826,1745545484959,-151.0,0.00050958,120]
[358920827,1745545485005,-1556.81,0.00050958,30]
[358920828,1745545485046,-500.0,0.00050958,30]
[358920829,1745545485088,-1076.02,0.00050958,30]
[358920830,1745545485132,-206.896493,0.00050958,120]
[358920831,1745545485174,-551.43,0.00050958,30]
[358920832,1745545485214,-560.99,0.00050958,30]
[358920833,1745545485253,-500.0,0.00050958,30]
[358920834,1745545485292,-743.83,0.00050958,30]
[358920835,1745545485332,-206.896493,0.00050958,120]
[358920836,1745545485371,-151.0,0.00050958,120]
[358920837,1745545485412,-716.88,0.00050958,30]
[358920838,1745545485452,-500.0,0.00050958,30]
[358920839,1745545485493,-6518.42,0.00050958,30]
[358920840,1745545485532,-500.0,0.00050958,30]
[358920841,1745545485572,-6050.470095,0.00050958,30]
[358920842,1745545485611,-500.0,0.00050958,30]
[358920843,1745545485649,-500.0,0.00050958,30]
[358920844,1745545485688,-500.0,0.00050958,30]
[358920845,1745545485726,-1077.87,0.00050958,30]
[358920846,1745545485764,-599.09,0.00050958,30]
[358920847,1745545485803,-516.8,0.00050958,30]
[358920848,1745545485843,-840.45,0.00050958,30]
[358920849,1745545485883,-535.24,0.00050958,30]
[358920850,1745545485923,-500.0,0.00050958,30]
[358920851,1745545485963,-1206.69,0.00050958,30]
[358920852,1745545486002,-530.1,0.00050958,30]
[358920853,1745545486041,-1653.86,0.00050958,30]
[358920854,1745545486081,-1755.79,0.00050958,30]
[358920855,1745545486121,-500.0,0.00050958,30]
[358920856,1745545486162,-780.2,0.00050958,30]
[358920857,1745545486203,-606.95,0.00050958,30]
[358920858,1745545486244,-1333.8,0.00050958,30]
[358920859,1745545486285,-574.35,0.00050958,30]
[358920860,1745545486325,-782.478522,0.00050958,30]
[358920861,1745545486366,-500.0,0.00050958,30]
[358920862,1745545486405,-500.0,0.00050958,30]
[358920863,1745545486442,-500.0,0.00050958,30]
[358920864,1745545486482,-583.66,0.00050958,120]
[358920865,1745545486520,-1414.99,0.00050958,30]
[358920866,1745545486561,-1072.46,0.00050958,30]
[358920867,1745545486599,-500.0,0.00050958,30]
[358920868,1745545486639,-1021.91,0.00050958,30]
[358920869,1745545486678,-500.0,0.00050958,30]
[358920870,1745545486717,-1937.76,0.00050958,30]
[358920871,1745545486752,-500.0,0.00050958,30]
[358920872,1745545486790,-500.0,0.00050958,30]
[358920873,1745545486827,-500.0,0.00050958,30]
[358920874,1745545486863,-500.0,0.00050958,30]
[358920875,1745545486900,-500.0,0.00050958,30]
[358920876,1745545486935,-1156.26,0.00050958,30]
[358920877,1745545486972,-500.0,0.00050958,30]
[358920878,1745545487009,-759.106322,0.00050958,30]
[358920879,1745545487045,-821.73,0.00050958,30]
[358920880,1745545487082,-500.0,0.00050958,30]
[358920881,1745545487122,-809.65,0.00050958,30]
[358920882,1745545487161,-500.0,0.00050958,30]
[358920883,1745545487200,-1231.82,0.00050958,30]
[358920884,1745545487238,-500.0,0.00050958,30]
[358920885,1745545487274,-1214.56,0.00050958,30]
[358920886,1745545487311,-500.0,0.00050958,30]
[358920887,1745545487348,-2849.2,0.00050958,30]
[358920888,1745545487385,-500.0,0.00050958,30]
[358920889,1745545487421,-3096.48,0.00050958,30]
[358920890,1745545487457,-6517.27,0.00050958,30]
[358920891,1745545487492,-500.0,0.00050958,30]
[358920892,1745545487530,-1964.64,0.00050958,30]
[358920893,1745545487568,-642.502757,0.00050958,120]
[358920894,1745545487606,-528.4,0.00050958,30]
[358920895,1745545487645,-500.0,0.00050958,30]
[358920896,1745545487684,-5076.34,0.00050958,30]
[358920897,1745545487724,-642.502757,0.00050958,120]
[358920898,1745545487765,-3017.9,0.00050958,30]
[358920899,1745545487804,-500.0,0.00050958,30]
[358920900,1745545487845,-1363.63,0.00050958,30]
[358920901,1745545488086,-572.21,0.00050958,30]
[358920902,1745545488130,-202.64,0.00050976,30]
[358920903,1745545488172,-1000.0,0.00051,30]
[358920904,1745545488214,-1329.0,0.00051,30]
[358920905,1745545488255,-151.0,0.00051,120]
[358920906,1745545488294,-151.0,0.00051,120]
[358920907,1745545488331,-151.0,0.00051,120]
[358920908,1745545488368,-151.0,0.00051,120]
[358920909,1745545488408,-300.0,0.00051006,30]
[358920910,1745545488448,-1458.14759606,0.00051231,120]
[358920911,1745545488489,-1635.01553761,0.00051231,120]
[358920912,1745545488529,-500.0,0.00051231,30]
[358920913,1745545488571,-500.0,0.00051231,30]
[358920914,1745545488616,-500.0,0.00051231,30]
[358920915,1745545488660,-500.0,0.00051231,30]
[358920916,1745545488704,-243.26636695,0.00051231,30]
[358920917,1745545488749,-500.0,0.00051232,30]
[358920918,1745545488794,-2016.33,0.00051232,30]
[358920919,1745545488839,-500.0,0.00051232,30]
[358920920,1745545488883,-500.0,0.00051232,30]
[358920921,1745545488930,-500.0,0.00051232,30]
[358920922,1745545488974,-1286.01,0.00051232,30]
[358920924,1745545489016,-500.0,0.00051232,30]
[358920925,1745545489060,-500.0,0.00051232,30]
[358920926,1745545489105,-500.0,0.00051232,30]
[358920927,1745545489149,-500.0,0.00051232,30]
[358920929,1745545489203,-664.11,0.00051232,30]
[358920930,1745545489247,-500.0,0.00051232,30]
[358920931,1745545489290,-500.0,0.00051232,30]
[358920932,1745545489331,-796.66,0.00051232,30]
[358920933,1745545489371,-500.0,0.00051232,30]
[358920934,1745545489410,-500.0,0.00051232,30]
[358920935,1745545489452,-500.0,0.00051232,30]
[358920936,1745545489494,-533.3,0.00051232,30]
[358920937,1745545489534,-500.0,0.00051232,30]
[358920938,1745545489573,-500.0,0.00051232,30]
[358920939,1745545489614,-500.0,0.00051232,30]
[358920940,1745545489655,-500.0,0.00051232,30]
[358920941,1745545489695,-500.0,0.00051232,30]
[358920942,1745545489736,-500.0,0.00051232,30]
[358920943,1745545489776,-500.0,0.00051232,30]
[358920944,1745545489817,-493.05275252,0.00051232,30]
[358920945,1745545489856,-300.0,0.00051232,30]
[358920946,1745545489896,-500.0,0.00051232,30]
[358920947,1745545489936,-1527.68,0.00051232,30]
[358920948,1745545489976,-500.0,0.00051232,30]
[358920949,1745545490016,-429.20225349,0.00051232,30]
[358920950,1745545490055,-500.0,0.00051232,30]
[358920951,1745545490095,-500.0,0.00051232,30]
[358920952,1745545490134,-500.0,0.00051232,30]
[358920953,1745545490178,-1098.37,0.00051232,30]
[358920954,1745545490216,-541.28,0.00051232,30]
[358920955,1745545490254,-1116.42,0.00051232,30]
[358920956,1745545490291,-546.69,0.00051232,30]
[358920957,1745545490328,-500.0,0.00051232,30]
[358920958,1745545490364,-500.0,0.00051232,30]
[358920959,1745545490402,-500.0,0.00051232,30]
[358920960,1745545490440,-500.0,0.00051232,30]
[358920961,1745545490480,-500.0,0.00051232,30]
[358920962,1745545490519,-500.0,0.00051232,30]
[358920963,1745545490558,-500.0,0.00051232,30]
[358920964,1745545490596,-1901.47,0.00051232,30]
[358920965,1745545490634,-500.0,0.00051232,30]
[358920966,1745545490671,-500.0,0.00051232,30]
[358920967,1745545490708,-1757.16,0.00051232,30]
[358920968,1745545490746,-211.28426225,0.00051232,30]
[358920969,1745545490783,-500.0,0.00051232,30]
[358920970,1745545490820,-1673.18,0.00051232,30]
[358920971,1745545490858,-797.02,0.00051232,30]
[358920972,1745545490895,-1168.97,0.00051232,30]
[358920973,1745545490933,-1038.01,0.00051232,30]
[358920974,1745545490971,-1114.87,0.00051232,30]
[358920975,1745545491010,-690.29,0.00051232,30]
[358920976,1745545491048,-500.0,0.00051232,30]
[358920977,1745545491086,-500.0,0.00051232,30]
[358920978,1745545491123,-717.48,0.00051232,30]
[358920979,1745545491159,-1062.7,0.00051232,30]
[358920980,1745545491196,-1633.77,0.00051232,30]
[358920981,1745545491234,-1248.52,0.00051232,30]
[358920982,1745545491272,-633.48,0.00051232,30]
[358920983,1745545491312,-534.11317659,0.00051232,30]
[358920984,1745545491352,-2641.69,0.00051232,30]
[358920985,1745545491391,-500.0,0.00051232,30]
[358920986,1745545491431,-2881.29,0.00051232,30]
[358920987,1745545491474,-500.0,0.00051232,30]
[358920988,1745545491517,-500.0,0.00051232,30]
[358920989,1745545491560,-550.75220556,0.00051232,30]
[358920990,1745545491604,-809.25,0.00051232,30]
[358920991,1745545491648,-975.25,0.00051232,30]
[358920992,1745545491692,-10337.63,0.00051232,30]
[358920993,1745545491734,-3067.16,0.00051232,30]
[358920994,1745545491774,-1318.12,0.00051232,30]
[358920995,1745545491813,-507.43,0.00051232,30]
[358920996,1745545491854,-570.23,0.00051232,30]
[358920997,1745545491891,-627.41,0.00051232,30]
[358920998,1745545491930,-500.0,0.00051232,30]
[358920999,1745545491965,-500.0,0.00051232,30]
[358921000,1745545492002,-679.54,0.00051232,30]
[358921001,1745545492040,-500.0,0.00051232,30]
[358921002,1745545492079,-1252.46,0.00051232,30]
[358921003,1745545492115,-575.58,0.00051232,30]
[358921004,1745545492153,-2182.67,0.00051232,30]
[358921005,1745545492192,-521.29,0.00051232,30]
[358921006,1745545492231,-1867.96,0.00051232,30]
[358921007,1745545492448,-1074.64,0.00051232,30]
[358921008,1745545492493,-3545.51,0.00051232,30]
[358921009,1745545492533,-728.08,0.00051232,30]
[358921010,1745545492573,-672.38,0.00051232,30]
[358921011,1745545492612,-500.0,0.00051232,30]
[358921012,1745545492653,-3286.78,0.00051232,30]
[358921013,1745545492694,-500.0,0.00051232,30]
[358921014,1745545492735,-1180.4,0.00051232,30]
[358921015,1745545492774,-500.0,0.00051232,30]
[358921016,1745545492813,-500.0,0.00051232,30]
[358921017,1745545492853,-502.18,0.00051232,30]
[358921018,1745545492892,-3075.34,0.00051232,30]
[358921019,1745545492932,-1837.7,0.00051232,30]
[358921020,1745545492971,-3115.11,0.00051232,30]
[358921021,1745545493010,-510.34158183,0.00051232,30]
[358921022,1745545493047,-1656.27,0.00051232,30]
[358921023,1745545493084,-1741.99,0.00051232,30]
[358921024,1745545493124,-919.24,0.00051232,30]
[358921025,1745545493165,-2447.99,0.00051232,30]
[358921026,1745545493205,-500.0,0.00051232,30]
[358921027,1745545493244,-8924.7,0.00051232,30]
[358921028,1745545493282,-540.79085344,0.00051232,30]
[358921029,1745545493321,-1868.99,0.00051232,30]
[358921030,1745545493361,-770.76,0.00051232,30]
[358921031,1745545493400,-818.8,0.00051232,30]
[358921032,1745545493440,-500.0,0.00051232,30]
[358921033,1745545493481,-1584.41,0.00051232,30]
[358921034,1745545493522,-1480.64,0.00051232,30]
[358921035,1745545493567,-572.56,0.00051232,30]
[358921036,1745545493612,-455.53537339,0.00051232,30]
[358921037,1745545493657,-715.9,0.00051232,30]
[358921038,1745545493702,-655.98,0.00051232,30]
[358921039,1745545493745,-500.0,0.00051232,30]
[358921040,1745545493789,-786.19,0.00051232,30]
[358921041,1745545493832,-500.0,0.00051232,30]
[358921042,1745545493875,-733.82,0.00051232,30]
[358921043,1745545493915,-760.58,0.00051232,30]
[358921044,1745545493959,-1510.41,0.00051232,30]
[358921045,1745545493998,-825.68,0.00051232,30]
[358921046,1745545494037,-500.0,0.00051232,30]
[358921047,1745545494077,-1091.92,0.00051232,30]
[358921048,1745545494117,-500.0,0.00051232,30]
[358921049,1745545494159,-500.0,0.00051232,30]
[358921050,1745545494200,-3345.59,0.00051232,30]
[358921051,1745545494240,-500.0,0.00051232,30]
[358921052,1745545494280,-964.01,0.00051232,30]
[358921053,1745545494321,-579.02,0.00051232,30]
[358921054,1745545494362,-500.0,0.00051232,30]
[358921055,1745545494403,-3181.51,0.00051232,30]
[358921056,1745545494445,-1127.53,0.00051232,30]
[358921057,1745545494485,-1405.73,0.00051232,30]
[358921058,1745545494525,-918.96,0.00051232,30]
[358921059,1745545494563,-970.8,0.00051232,30]
[358921060,1745545494602,-1253.7,0.00051232,30]
[358921061,1745545494640,-217.31741254,0.00051232,30]
[358921062,1745545494679,-1119.69,0.00051232,30]
[358921063,1745545494720,-500.0,0.00051232,30]
[358921064,1745545494760,-616.95,0.00051232,30]
[358921065,1745545494803,-2204.65,0.00051232,30]
[358921066,1745545494844,-1770.63,0.00051232,30]
[358921067,1745545494886,-500.0,0.00051232,30]
[358921068,1745545494930,-735.34,0.00051232,30]
[358921069,1745545494973,-845.57,0.00051232,30]
[358921070,1745545495016,-506.82,0.00051232,30]
[358921071,1745545495058,-771.61,0.00051232,30]
[358921072,1745545495099,-797.78,0.00051232,30]
[358921073,1745545495138,-558.48413231,0.00051232,30]
[358921074,1745545495178,-1617.03,0.00051232,30]
[358921075,1745545495217,-661.15,0.00051232,30]
[358921076,1745545495257,-500.0,0.00051232,30]
[358921077,1745545495299,-1431.22,0.00051232,30]
[358921078,1745545495338,-899.41,0.00051232,30]
[358921079,1745545495378,-1145.2,0.00051232,30]
[358921080,1745545495419,-823.48,0.00051232,30]
[358921081,1745545495458,-500.0,0.00051232,30]
[358921082,1745545495499,-680.92,0.00051232,30]
[358921083,1745545495541,-511.66,0.00051232,30]
[358921084,1745545495585,-2134.81,0.00051232,30]
[358921085,1745545495628,-503.98,0.00051232,30]
[358921086,1745545495672,-949.81,0.00051232,30]
[358921087,1745545495715,-1317.65,0.00051232,30]
[358921088,1745545495760,-520.85,0.00051232,30]
[358921089,1745545495803,-1006.04,0.00051232,30]
[358921090,1745545495847,-151.0,0.00051232,30]
[358921091,1745545495888,-151.0,0.00051232,30]
[358921092,1745545495930,-200.0,0.00051232,30]
[358921093,1745545495971,-500.0,0.00051232,30]
[358921094,1745545496011,-151.0,0.00051232,30]
[358921095,1745545496048,-151.0,0.00051232,30]
[358921096,1745545496085,-151.0,0.00051232,30]
[358921097,1745545496123,-200.0,0.00051232,30]
[358921098,1745545496160,-518.5,0.00051232,30]
[358921099,1745545496200,-151.0,0.00051232,30]
[358921100,1745545496239,-151.0,0.00051232,30]
[358921101,1745545496279,-151.0,0.00051232,30]
[358921102,1745545496317,-200.0,0.00051232,30]
[358921103,1745545496358,-537.6845,0.00051232,30]
[358921104,1745545496401,-500.0,0.00051232,30]
[358921105,1745545496443,-34592.57,0.00051232,30]
[358921106,1745545496486,-151.0,0.00051232,30]
[358921107,1745545496527,-151.0,0.00051232,30]
[358921108,1745545496572,-200.0,0.00051232,30]
[358921109,1745545496615,-1128.15,0.00051232,30]
[358921110,1745545496657,-151.0,0.00051232,30]
[358921111,1745545496868,-151.19773559,0.00051232,30]
[358921112,1745545496914,-200.0,0.00051232,30]
[358921113,1745545496963,-557.5788265,0.00051232,30]
[358921114,1745545497008,-151.0,0.00051232,30]
[358921115,1745545497053,-742.75,0.00051232,30]
[358921116,1745545497095,-207.4,0.00051232,30]
[358921117,1745545497136,-151.0,0.00051232,30]
[358921118,1745545497179,-500.0,0.00051232,30]
[358921119,1745545497222,-152.67729658,0.00051232,30]
[358921120,1745545497264,-578.20924308,0.00051232,30]
[358921121,1745545497304,-215.0738,0.00051232,30]
[358921122,1745545497343,-200.0,0.00051232,30]
[358921123,1745545497382,-151.0,0.00051232,30]
[358921124,1745545497421,-599.60298507,0.00051232,30]
[358921125,1745545497462,-500.0,0.00051232,30]
[358921126,1745545497504,-621.78829552,0.00051232,30]
[358921127,1745545497547,-500.0,0.00051232,30]
[358921128,1745545497589,-223.0315306,0.00051232,30]
[358921129,1745545497630,-200.0,0.00051232,30]
[358921130,1745545497672,-151.0,0.00051232,30]
[358921131,1745545497713,-676.76310415,0.00051232,30]
[358921132,1745545497753,-231.28369723,0.00051232,30]
[358921133,1745545497793,-200.0,0.00051232,30]
[358921134,1745545497835,-151.0,0.00051232,30]
[358921135,1745545497892,-1846.29,0.00051232,30]
[358921136,1745545497937,-581.2,0.00051232,30]
[358921137,1745545497981,-239.84119403,0.00051232,30]
[358921138,1745545498022,-155.0,0.00051232,30]
[358921139,1745545498064,-200.0,0.00051232,30]
[358921140,1745545498109,-748.35,0.00051232,30]
[358921141,1745545498150,-155.0,0.00051232,30]
[358921142,1745545498188,-200.0,0.00051232,30]
[358921143,1745545498229,-248.71531821,0.00051232,30]
[358921144,1745545498267,-200.0,0.00051232,30]
[358921145,1745545498307,-257.91778498,0.00051232,30]
[358921146,1745545498346,-155.0,0.00051232,30]
[358921147,1745545498388,-1159.23,0.00051232,30]
[358921148,1745545498429,-200.0,0.00051232,30]
[358921149,1745545498472,-500.0,0.00051232,30]
[358921150,1745545498513,-155.0,0.00051232,30]
[358921151,1745545498554,-200.0,0.00051232,30]
[358921152,1745545498595,-267.46074303,0.00051232,30]
[358921153,1745545498642,-155.0,0.00051232,30]
[358921154,1745545498684,-200.0,0.00051232,30]
[358921155,1745545498727,-1415.98,0.00051232,30]
[358921156,1745545498769,-277.35679052,0.00051232,30]
[358921157,1745545498810,-200.0,0.00051232,30]
[358921158,1745545498852,-17345.41,0.00051232,30]
[358921159,1745545498893,-155.0,0.00051232,30]
[358921160,1745545498934,-287.61899177,0.00051232,30]
[358921161,1745545498974,-200.0,0.00051232,30]
[358921162,1745545499013,-155.0,0.00051232,30]
[358921163,1745545499052,-298.26089446,0.00051232,30]
[358921164,1745545499091,-200.0,0.00051232,30]
[358921165,1745545499131,-309.29654756,0.00051232,30]
[358921166,1745545499171,-155.0,0.00051232,30]
[358921167,1745545499210,-200.0,0.00051232,30]
[358921168,1745545499251,-320.74051982,0.00051232,30]
[358921169,1745545499293,-200.0,0.00051232,30]
[358921170,1745545499334,-155.0,0.00051232,30]
[358921171,1745545499375,-945.17,0.00051232,30]
[358921172,1745545499418,-332.60791905,0.00051232,30]
[358921173,1745545499467,-155.0,0.00051232,30]
[358921174,1745545499509,-500.0,0.00051232,30]
[358921175,1745545499552,-344.91441206,0.00051232,30]
[358921176,1745545499594,-211.38621753,0.00051232,30]
[358921177,1745545499635,-155.0,0.00051232,30]
[358921178,1745545499679,-628.22,0.00051232,30]
[358921179,1745545499721,-357.6762453,0.00051232,30]
[358921180,1745545499761,-601.01,0.00051232,30]
[358921181,1745545499800,-370.91026638,0.00051232,30]
[358921182,1745545499839,-174.98333306,0.00051232,30]
[358921183,1745545499879,-521.14,0.00051232,30]
[358921184,1745545499918,-384.63394623,0.00051232,30]
[358921185,1745545499962,-500.0,0.00051232,30]
[358921186,1745545500002,-909.31,0.00051232,30]
[358921187,1745545500047,-398.86540225,0.00051232,30]
[358921188,1745545500091,-1556.81,0.00051232,30]
[358921189,1745545500135,-500.0,0.00051232,30]
[358921190,1745545500181,-1076.02,0.00051232,30]
[358921191,1745545500225,-551.43,0.00051232,30]
[358921192,1745545500276,-560.99,0.00051232,30]
[358921193,1745545500325,-500.0,0.00051232,30]
[358921194,1745545500372,-743.83,0.00051232,30]
[358921195,1745545500420,-716.88,0.00051232,30]
[358921196,1745545500468,-500.0,0.00051232,30]
[358921197,1745545500517,-6518.42,0.00051232,30]
[358921198,1745545500563,-500.0,0.00051232,30]
[358921199,1745545500610,-6050.470095,0.00051232,30]
[358921200,1745545500655,-500.0,0.00051232,30]
[358921201,1745545500699,-500.0,0.00051232,30]
[358921202,1745545500742,-500.0,0.00051232,30]
[358921203,1745545500782,-1077.87,0.00051232,30]
[358921204,1745545500825,-599.09,0.00051232,30]
[358921205,1745545500867,-516.8,0.00051232,30]